Cogmind - Beta 13 @@@ ROGUE MODE // 2024.05.13 @ 21:32:55 Player: dp-fld Result: Destroyed by B-86 Titan with Matter Neutralizer Performance ------------- Evolutions (6) 3000 Regions Visited (25) 5000 Robots Destroyed (268) 1340 Value Destroyed (8309) 8309 Prototype IDs (70) 1400 Alien Tech Used (0) 0 Bonus (6785) 6785 TOTAL SCORE: 25834 Bonus ------- High Alert Combat Kills 570 Follower Combat Kills 2327 Awakened Behemoth Slayer 1000 Network Hubs Disabled 400 Aligned with FarCom 300 Met Imprinter 300 Met Warlord at Base 500 MAIN.C Attacked Warlord 500 Warlord Defense Kills 94 Built Enhanced Grunts 300 A7 Reached Mainframe 300 Met R17 at Cetus 500 Friendly Fire -306 Cogmind --------- Core Integrity 0/1150 Matter 276/300 Energy 10/100 System Corruption 7% Temperature Cool (9) Movement Core (50) Location -4/Factory Parts ------- > --- POWER (1) -------- (None) > --- PROPULSION (6) --- (None) > --- UTILITY (10) ----- Experimental Core Analyzer Hacking Suite System Mapper > --- WEAPON (2) ------- CR-A16's Behemoth Slayer > --- INVENTORY (5) ---- Improved Fusion Compressor Energy Well (344) Graviton Cannon Gravity Flail Longsword +1 Peak State ------------ > --- POWER ------------ Improved Fusion Compressor > --- PROPULSION ------- Cooled Gravmag System Combat Gravmag System Improved Antigrav System Improved Antigrav System Improved Linear Gravjet Cooled Antigrav System > --- UTILITY ---------- Large Storage Unit Energy Well Machine Analyzer Experimental Core Analyzer Nanoactuators Experimental Reaction Control System Experimental Utility Shielding Experimental Weapon Shielding Experimental Force Field System Mapper > --- WEAPON ----------- Gravity Flail Longsword +1 > --- INVENTORY -------- Micro Fission Core Micro Fission Core Experimental Coolant Injector Large Storage Unit Nanoactuators Nanoactuators ECM Suite Experimental Weapon Shielding Authchip [Processor] Advanced KE Penetrator Graviton Cannon Vortex Lance Vortex Lance CR-A16's Behemoth Slayer [Rating: 142] Favorites ----------- Power Light Nuclear Core Engine Light Angular Momentum Engine Power Core Light Nuclear Core Reactor Light Antimatter Reactor Propulsion Combat Airjet Treads Light Treads Leg Aluminum Leg Wheel Compact Wheel Hover Unit Combat Airjet Utility Microactuators Device Microactuators Storage Medium Storage Unit Processor Advanced Melee Analysis Suite Hackware Hacking Suite Protection Centrium Medium Armor Plating Weapon Longsword +1 Energy Gun Spread Laser Energy Cannon Heavy Ion Cannon Ballistic Gun Advanced KE Penetrator Ballistic Cannon Graviton Cannon Launcher Rocket Launcher Special Weapon Improved Plasma Cutter Impact Weapon Gravity Flail Slashing Weapon Longsword +1 Piercing Weapon CR-A16's Pointy Stick Special Melee Weapon Advanced Datajack Build | -11 -10 -10 -10 -9 -8 -7 -7 -7 -7 -7 -7 -6 -6 -6 -6 -6 -6 -5 -5 -5 -5 -4 -4 -4 -4 ------- Run | Yrd Mat Min Exi Min Mat Fac Was Fac Low Low Zio Pro Fac Ext Cet Arc Hub Fac Upp Upp War Pro Fac Was Fac Slots Evolved 12 | . . . . . 4 2 . . . . . . 2 . . . . 2 . . . . 2 . . Power . | . . . . . . . . . . . . . . . . . . . . . . . . . . Propulsion 4 | . . . . . 2 . . . . . . . 1 . . . . 1 . . . . . . . Utility 8 | . . . . . 2 2 . . . . . . 1 . . . . 1 . . . . 2 . . Weapon . | . . . . . . . . . . . . . . . . . . . . . . . . . . Parts Attached 379 | 1 18 4 6 2 52 35 1 19 3 . 2 10 32 13 5 19 11 28 11 . 14 . 48 . 45 Power 27 | . 2 . . 1 4 2 . . . . . . 2 1 1 1 1 . . . . . 5 . 7 Engine 3 | . 1 . . . 1 . . . . . . . . . . . 1 . . . . . . . . Core 16 | . 1 . . 1 3 2 . . . . . . 2 1 1 1 . . . . . . . . 4 Reactor 8 | . . . . . . . . . . . . . . . . . . . . . . . 5 . 3 Propulsion 92 | . 5 2 1 . 17 12 1 2 . . . 1 9 . . 5 3 11 . . 1 . 6 . 16 Treads 29 | . 3 2 1 . 16 7 . . . . . . . . . . . . . . . . . . . Leg . | . . . . . . . . . . . . . . . . . . . . . . . . . . Wheel 3 | . 2 . . . . . . . . . . . . . . . . . . . . . . . 1 Hover 60 | . . . . . 1 5 1 2 . . . 1 9 . . 5 3 11 . . 1 . 6 . 15 Flight . | . . . . . . . . . . . . . . . . . . . . . . . . . . Utility 166 | 1 5 1 3 1 19 11 . 11 . . 2 4 18 5 4 8 5 13 4 . 7 . 25 . 19 Device 77 | 1 2 1 . 1 7 4 . 4 . . . 3 13 3 . 4 1 3 3 . 3 . 15 . 9 Storage 22 | . 2 . 3 . 4 1 . 3 . . 2 . . 1 . . . 3 . . . . 2 . 1 Processor 11 | . . . . . 2 2 . . . . . . 2 . . . 1 . . . 1 . 2 . 1 Hackware 12 | . . . . . . 2 . . . . . . . . . . 3 2 . . . . 2 . 3 Protection 44 | . 1 . . . 6 2 . 4 . . . 1 3 1 4 4 . 5 1 . 3 . 4 . 5 Artifact . | . . . . . . . . . . . . . . . . . . . . . . . . . . Weapon 94 | . 6 1 2 . 12 10 . 6 3 . . 5 3 7 . 5 2 4 7 . 6 . 12 . 3 Energy Gun 5 | . 2 . . . . 2 . . . . . . . . . . . . . . 1 . . . . Energy Cannon 17 | . 2 . 1 . 7 5 . . . . . . . . . . . . . . . . 2 . . Ballistic Gun 7 | . 2 . . . . . . . . . . . . . . 1 . . 2 . 1 . 1 . . Ballistic Cannon 1 | . . . . . . . . . . . . . . . . . . . . . . . 1 . . Launcher 20 | . . 1 1 . 4 . . 3 1 . . 2 1 2 . . 1 1 3 . . . . . . Special Weapon 1 | . . . . . . . . . . . . . . . . . . . . . 1 . . . . Impact Weapon 6 | . . . . . . . . . . . . . . . . . . . . . . . 5 . 1 Slashing Weapon 25 | . . . . . 1 3 . 3 2 . . 3 2 3 . 2 1 2 . . 1 . 2 . . Piercing Weapon 11 | . . . . . . . . . . . . . . 2 . 1 . 1 2 . 2 . 1 . 2 Special Melee Weapon 1 | . . . . . . . . . . . . . . . . 1 . . . . . . . . . Unidentified Prototypes 32 | . 1 . . . 2 3 . . . . . . 3 1 1 1 . 1 1 . 7 . 10 . 1 Parts Lost 36 | . 2 . . . 1 . 1 . . . . 2 . 1 . . 3 2 1 1 . . 3 . 19 Power 5 | . 1 . . . . . . . . . . . . 1 . . . . . . . . 1 . 2 Propulsion 11 | . . . . . . . 1 . . . . 1 . . . . 1 . . . . . . . 8 Utility 18 | . 1 . . . . . . . . . . 1 . . . . 2 2 1 . . . 2 . 9 Weapon 2 | . . . . . 1 . . . . . . . . . . . . . . 1 . . . . . Highest Loss Streak 13 | . 1 . . . 1 . 1 . . . . 2 . 1 . . 1 2 1 1 . . 1 . 13 To Critical Strikes . | . . . . . . . . . . . . . . . . . . . . . . . . . . Average Slot Usage (%) 98 | . 98 100 71 100 99 99 98 99 100 100 100 98 99 99 100 99 99 99 99 99 100 100 99 100 98 Core 6 | . 6 14 14 14 8 6 7 7 7 7 7 7 6 6 6 5 5 . . . . . . . 1 Treads 12 | . 13 28 28 28 35 29 . . . . . . . . . . . . . . . . . . . Hover 19 | . . . . . . . 28 29 30 30 30 30 33 33 33 32 32 34 35 35 35 35 31 31 30 Device 13 | . 7 14 14 14 12 13 7 11 23 23 23 21 17 12 13 19 14 7 4 5 3 5 10 15 14 Storage 8 | . 14 14 14 14 9 7 7 7 7 7 7 7 6 6 6 6 6 8 11 11 11 11 8 10 9 Processor 6 | . . . . . 6 8 7 4 . . . . 8 13 13 6 7 11 11 11 15 17 12 10 10 Hackware 2 | . . . . . . 7 15 11 . . . . . . . . 8 10 11 11 3 . 7 5 5 Protection 8 | . 5 . . . 8 7 7 8 15 15 15 15 12 13 13 12 7 5 5 5 10 11 10 10 9 Energy Cannon 5 | . 7 14 . 14 15 11 . . . . . . . . . . . . . . . . . . . Ballistic Gun 1 | . 13 . . . . . . . . . . . . . . . . . 4 5 4 5 . . . Launcher 1 | . . 13 . 14 1 1 . . . . . 2 . . . . . . 1 4 . . . . . Slashing Weapon 5 | . . . . . . 1 15 14 14 15 15 12 13 8 6 12 12 10 . . 1 . 3 5 4 Naked Turns . | . . . . . . . . . . . . . . . . . . . . . . . . . . Heaviest Build 107 | 13 54 54 86 54 106 107 26 35 32 32 42 35 42 39 44 50 49 58 55 55 68 61 68 68 68 Greatest Support 83 | 20 40 40 40 40 80 83 32 32 32 32 32 32 54 54 54 54 54 69 69 69 74 70 70 68 72 Greatest Overweight (x) 9 | . 2 1 2 1 1 1 1 1 . . 1 1 . . . 9 . . . . . . 1 . 1 Average Overweight (x) . | . . 1 1 1 . . . . . . . . . . . . . . . . . . . . . Largest Inventory Capacity 25 | 8 20 20 25 20 25 25 10 15 10 10 15 10 10 10 10 10 10 15 15 15 15 15 15 15 15 Average Capacity 16 | 8 18 20 23 20 24 24 10 10 10 10 14 10 10 10 10 10 10 14 15 15 15 15 15 15 14 Most Carried 25 | 6 20 20 25 20 25 25 10 10 10 10 11 10 10 10 10 10 10 15 15 15 15 15 15 15 15 Average Carried 16 | 6 18 20 23 20 24 24 9 9 10 10 10 9 9 9 10 9 9 14 14 15 14 15 14 15 14 Final Capacity 25 | 8 20 20 20 20 25 10 10 10 10 10 10 10 10 10 10 10 10 15 15 15 15 15 15 15 5 Final Carried 25 | 6 20 20 20 20 25 10 9 10 10 10 10 10 10 10 10 10 10 15 15 15 15 15 15 15 5 Class Distribution -------------------- 31% | Mutant 23% | Commander-Gladiator 13% | Hacker-Gladiator 9% | Scavenger-Mutant 6% | Gladiator 4% | Hacker-Mutant Dominant Class ---------------- Mutant | -10/Materials Mutant | -10/Mines Mutant | -10/Exiles Mutant | -9/Mines Mutant | -8/Materials Mutant | -7/Factory Hacker-Gladiator | -7/Waste Hacker-Gladiator | -7/Factory Gladiator | -7/Lower Caves Gladiator | -7/Lower Caves Gladiator | -7/Zion Gladiator | -6/Proximity Caves Gladiator | -6/Factory Commander-Gladiator | -6/Extension Commander-Gladiator | -6/Cetus Commander-Gladiator | -6/Archives Commander-Gladiator | -6/Hub_04(d) Scavenger-Gladiator | -5/Factory Hacker-Mutant | -5/Upper Caves Hacker-Mutant | -5/Upper Caves Commander-Mutant | -5/Warlord Mutant | -4/Proximity Caves Hacker-Gladiator | -4/Factory Hacker-Mutant | -4/Waste Hacker-Gladiator | -4/Factory Resources | -11 -10 -10 -10 -9 -8 -7 -7 -7 -7 -7 -7 -6 -6 -6 -6 -6 -6 -5 -5 -5 -5 -4 -4 -4 -4 ----------- Run | Yrd Mat Min Exi Min Mat Fac Was Fac Low Low Zio Pro Fac Ext Cet Arc Hub Fac Upp Upp War Pro Fac Was Fac Matter Collected 5018 | 224 344 102 51 56 684 188 . 334 104 6 . 162 320 250 50 190 144 296 272 12 246 30 473 . 480 Remotely . | . . . . . . . . . . . . . . . . . . . . . . . . . . Salvage Created 11004 | 108 560 171 . . 1923 579 . 623 152 . . 130 810 1250 . 310 486 1080 213 50 61 8 966 . 1524 Parts 583 | 4 33 8 . . 104 33 . 43 5 . . 13 41 48 . 27 24 57 14 4 4 2 43 . 76 Haulers Intercepted 21 | . 2 . . . 4 2 . 3 . . . . 2 1 . . 1 2 . . . . 2 . 2 Recyclers Shooed 7 | . . . . . 4 . . 1 . . . . . 1 . . . 1 . . . . . . . Parts Field Recycled . | . . . . . . . . . . . . . . . . . . . . . . . . . . Retrieved Matter . | . . . . . . . . . . . . . . . . . . . . . . . . . . Parts Self-Destructed 32 | . . . . . . . . . 4 . . 13 . . . . . . 12 1 . 2 . . . Prevented 5 | . . . . . . . . . 1 . . . . . . . . . 3 1 . . . . . Kills | -11 -10 -10 -10 -9 -8 -7 -7 -7 -7 -7 -7 -6 -6 -6 -6 -6 -6 -5 -5 -5 -5 -4 -4 -4 -4 ------- Run | Yrd Mat Min Exi Min Mat Fac Was Fac Low Low Zio Pro Fac Ext Cet Arc Hub Fac Upp Upp War Pro Fac Was Fac Combat Hostiles Destroyed 153 | . 11 6 . . 34 7 . 6 4 . . 5 7 18 . . 3 7 12 3 1 1 8 . 20 Melee 53 | . . . . . . . . . 1 . . 3 7 13 . . 1 4 . . . 1 7 . 16 Guns 13 | . 9 . . . . . . . . . . . . . . . . . 2 1 1 . . . . Cannons 34 | . 2 1 . . 24 7 . . . . . . . . . . . . . . . . . . . AOE 45 | . . 4 . . 10 . . 6 3 . . 2 . 5 . . 1 3 9 2 . . . . . Classes Destroyed 19 | 2 4 1 . . 7 2 . . . . . . . 1 . . . . . . . 1 . . 1 Worker 21 | . . 2 . . 5 . . 2 . . . . . . . . 6 4 . . . . . . 2 Builder 22 | . . . . . 2 1 . 5 . . . . 1 1 . . 3 4 . . . . 2 . 3 Tunneler 2 | 1 . 1 . . . . . . . . . . . . . . . . . . . . . . . Hauler 21 | . 2 . . . 4 2 . 3 . . . . 2 1 . . 1 2 . . . . 2 . 2 Recycler 15 | 1 1 . . . 3 1 . 2 . . . . 1 2 . . . 3 . . . . 1 . . Mechanic 3 | . . . . . 1 . . . . . . . . . . . . . . . . . 2 . . Operator 13 | . 1 . . . 1 . . . . . . . . . . 9 1 1 . . . . . . . Drone 1 | . . . . . . . . . . . . . . . . . . . . . . 1 . . . Watcher 17 | . . . . . 4 1 . 3 . . . . 1 . . . . 3 . . . . 1 . 4 Swarmer 51 | . 3 3 . . 7 . . 6 3 . . 5 . 4 . . . 3 10 3 . . . . 4 Cutter 2 | . . . . . . . . . . . . . . . . . . . . . . . . . 2 Grunt 48 | . 8 3 . . 15 2 . . 1 . . . 3 5 . . 3 . 1 . . . 1 . 6 Brawler 3 | . . . . . 3 . . . . . . . . . . . . . . . . . . . . Duelist 3 | . . . . . 1 . . . . . . . . 1 . . . . . . . . . . 1 Protector 2 | . . . . . 1 . . . . . . . . . . . . . . . 1 . . . . Sentry 15 | . . . . . 7 1 . . . . . . 1 6 . . . . . . . . . . . Hunter 3 | . . . . . . 1 . . . . . . 1 . . . . . . . . . . . 1 Programmer 21 | . . . . . . 3 . . . . . . 2 . . . . 4 . . . . 6 . 6 Behemoth 4 | . . . . . . . . . . . . . . 2 . . . . 1 . . . 1 . . Wizard 1 | . . . . . . . . . . . . 1 . . . . . . . . . . . . . Best Kill Streak 8 | 2 3 4 . . 8 4 . 4 4 . . 4 4 5 . 6 7 6 6 3 1 1 3 . 4 Combat Bots Only 6 | . 3 3 . . 5 3 . 3 4 . . 4 3 5 . . 2 3 6 3 1 1 3 . 4 Max Kills in Single Turn 4 | 1 1 4 . . 4 1 . 4 2 . . 2 1 1 . 1 3 3 2 3 1 1 1 . 1 Gunslinging . | . . . . . . . . . . . . . . . . . . . . . . . . . . Exploded 3 | . . 3 . . 2 . . 3 2 . . 1 . 1 . . 1 2 2 2 . . . . . Melee 1 | . . . . . . . . . 1 . . 1 1 1 . . 1 1 . . . 1 1 . 1 Uniques/NPCs Destroyed . | . . . . . . . . . . . . . . . . . . . . . . . . . . Combat | -11 -10 -10 -10 -9 -8 -7 -7 -7 -7 -7 -7 -6 -6 -6 -6 -6 -6 -5 -5 -5 -5 -4 -4 -4 -4 -------- Run | Yrd Mat Min Exi Min Mat Fac Was Fac Low Low Zio Pro Fac Ext Cet Arc Hub Fac Upp Upp War Pro Fac Was Fac Hostile Shots Fired 982 | . 56 15 . . 135 72 2 3 12 11 . 36 35 180 1 . 40 40 29 15 8 . 73 . 219 Missed 402 | . 19 5 . . 41 27 1 2 6 4 . 12 16 91 1 . 20 18 18 4 5 . 27 . 85 Damage Taken 10311 | . 438 184 . . 1451 579 44 111 126 55 . 355 224 929 14 . 497 850 167 172 31 . 1241 . 2843 Core 2159 | . 109 . . . 220 34 . 23 13 40 . 28 . 166 . . 86 223 32 32 . . 179 . 974 Absorbed by Shields 155 | . . . . . . . . . . . . . . 103 13 . . . . . 29 . . . 10 Redirected to Shielding 649 | . 10 . . . . . . . 20 . . 28 37 64 . . . . . . . . 77 . 413 Regen/Repaired (Parts) 1173 | . . . . . 410 23 . 44 . . . . 103 . . . . 278 . . . . 54 . 261 Core Remaining (%) 72 | 100 . . . 56 60 . . . . . . 80 . . . . 70 . . . . 71 . . . Volleys Fired 285 | 7 54 15 . . 99 41 . 2 2 . . 4 . 10 . . 3 2 15 7 16 8 . . . Largest 2 | 2 2 2 . . 2 2 . 1 1 . . 1 . 1 . . 1 1 2 2 1 1 . . . Hottest 136 | 40 136 101 . . 136 130 . 36 36 . . 36 . 36 . . 36 36 71 71 35 35 . . . Shots Fired 481 | 14 110 20 . . 184 79 . 2 2 . . 4 . 10 . . 3 2 19 8 16 8 . . . Gun 151 | 14 98 . . . . . . . . . . . . . . . . . 10 5 16 8 . . . Cannon 276 | . 12 15 . . 170 79 . . . . . . . . . . . . . . . . . . . Launcher 54 | . . 5 . . 14 . . 2 2 . . 4 . 10 . . 3 2 9 3 . . . . . Special . | . . . . . . . . . . . . . . . . . . . . . . . . . . Kinetic 139 | 14 86 . . . . . . . . . . . . . . . . . 10 5 16 8 . . . Thermal 288 | . 24 15 . . 170 79 . . . . . . . . . . . . . . . . . . . Explosive 54 | . . 5 . . 14 . . 2 2 . . 4 . 10 . . 3 2 9 3 . . . . . Electromagnetic . | . . . . . . . . . . . . . . . . . . . . . . . . . . Robot Hit Streak 13 | 4 10 9 . . 13 9 . 1 1 . . . . 6 . . . 1 7 2 5 . . . . Robot Miss Streak 5 | 1 5 2 . . 3 3 . 1 1 . . . . 1 . . . 1 1 1 4 2 . . . Penetration Max 1 | . . . . . . . . . . . . . . . . . . . . 1 . . . . . Secondary Targets 1 | . 1 . . . . . . . . . . . . . . . . . . . . . . . . Max Gunslinging Chain 1 | . 1 . . . . . . . . . . . . . . . . . . . . . . . . Shots Hit Robots 593 | 11 70 14 . . 118 50 . 30 3 . . 6 31 51 . 17 12 49 13 3 8 1 44 . 62 Core Hits 340 | 4 42 11 . 1 80 15 . 18 5 . . 5 12 33 . 8 16 20 19 4 3 1 13 . 30 Critical Kills 4 | . . 1 . . 1 . . . . . . . . . . . . . . . . . 2 . . Critical Parts Destroyed 8 | . . . . . . . . . . . . . . . . . . . . . 2 . 4 . 2 Critical Strikes 34 | . . 1 . . 1 . . 1 . . . 1 2 10 . . . 3 . . 2 . 6 . 7 Meltdown 2 | . . 1 . . 1 . . . . . . . . . . . . . . . . . . . . Destroy 2 | . . . . . . . . . . . . . . . . . . . . . 2 . . . . Smash 8 | . . . . . . . . . . . . . . . . . . . . . . . 6 . 2 Sever 21 | . . . . . . . . 1 . . . 1 2 9 . . . 3 . . . . . . 5 Impale 1 | . . . . . . . . . . . . . . 1 . . . . . . . . . . . Melee Attacks 669 | . . . . . 2 2 . 57 4 . 1 8 61 58 3 17 24 94 2 . 28 6 118 . 184 Impact 119 | . . . . . . . . . . . . . . . . . . . . . . . 59 . 60 Slashing 511 | . . . . . 2 2 . 57 4 . 1 8 61 51 2 13 24 88 . . 26 . 48 . 124 Piercing 35 | . . . . . . . . . . . . . . 7 1 . . 6 2 . 2 6 11 . . Sneak Attacks 79 | . . . . . 1 . . 13 . . . . 4 7 . 11 6 16 . . . . 12 . 9 Combat Hostiles 3 | . . . . . . . . . . . . . . 1 . . . 1 . . . . . . 1 Follow-up Attacks 19 | . . . . . . . . 1 . . . . 2 4 . . . 3 . . . . 4 . 5 Damage Inflicted 30664 | 85 834 515 . 53 4270 1418 . 2555 282 . . 465 1741 3406 . 1211 1941 3432 1093 265 240 63 3213 . 3582 Guns 1323 | 85 682 . . . . . . . . . . . . . . . . . 216 72 240 28 . . . Cannons 4739 | . 152 231 . . 2938 1418 . . . . . . . . . . . . . . . . . . . Explosions 5314 | . . 274 . . 1262 . . 404 149 . . 189 . 857 . . 845 264 877 193 . . . . . Melee 19220 | . . . . . 65 . . 2151 133 . . 276 1741 2549 . 1211 1096 3168 . . . 35 3213 . 3582 Ramming 68 | . . 10 . 53 5 . . . . . . . . . . . . . . . . . . . . Kinetic 1153 | 85 512 . . . . . . . . . . . . . . . . . 216 72 240 28 . . . Thermal 4909 | . 322 231 . . 2938 1418 . . . . . . . . . . . . . . . . . . . Explosive 4469 | . . 274 . . 1262 . . 404 149 . . 189 . 857 . . . 264 877 193 . . . . . Electromagnetic 845 | . . . . . . . . . . . . . . . . . 845 . . . . . . . . Impact 2398 | . . . . . . . . . . . . . . . . . . . . . . . 1744 . 654 Slashing 16139 | . . . . . 65 . . 2151 133 . . 276 1741 2358 . 1211 1096 2980 . . . . 1200 . 2928 Piercing 683 | . . . . . . . . . . . . . . 191 . . . 188 . . . 35 269 . . Highest Corruption 7 | . 1 1 1 1 . . . 1 1 1 1 . . . . . 3 . . . . . 2 2 7 Average Corruption 1 | . 1 1 1 1 . . . 1 1 1 1 . . . . . 2 . . . . . 1 2 3 Corruption Purged . | . . . . . . . . . . . . . . . . . . . . . . . . . . Corruption Blocked . | . . . . . . . . . . . . . . . . . . . . . . . . . . Effects 102 | . 15 8 8 6 . . . 2 3 . . . . . . . . . . . . . 7 1 52 Message Errors 22 | . 2 3 4 1 . . . . 1 . . . . . . . . . . . . . 3 1 7 Matter Fused 26 | . 4 . . 3 . . . . . . . . . . . . . . . . . . 1 . 18 Heat Flow Errors 16 | . 4 . 1 1 . . . . . . . . . . . . . . . . . . . . 10 Energy Discharges 16 | . 2 1 . 1 . . . 1 . . . . . . . . . . . . . . 3 . 8 Parts Rejected 2 | . . 1 . . . . . . . . . . . . . . . . . . . . . . 1 Data Loss (minor) 15 | . 1 2 2 . . . . 1 1 . . . . . . . . . . . . . . . 8 Data Loss (major) 2 | . . . 1 . . . . . 1 . . . . . . . . . . . . . . . . Misfires 3 | . 2 1 . . . . . . . . . . . . . . . . . . . . . . . Overload Shots . | . . . . . . . . . . . . . . . . . . . . . . . . . . Overflow Damage 3785 | . 11 1 . . 78 17 . 365 23 . . 43 134 334 . 310 403 597 60 . . . 899 . 510 Projectiles 72 | . 11 1 . . 43 17 . . . . . . . . . . . . . . . . . . . Explosions 161 | . . . . . 10 . . . . . . . . 38 . . 53 . 60 . . . . . . Melee 3552 | . . . . . 25 . . 365 23 . . 43 134 296 . 310 350 597 . . . . 899 . 510 Knockbacks 17 | . . . . . . . . . . . . . . . . . . . . . . . 12 . 5 Impact 15 | . . . . . . . . . . . . . . . . . . . . . . . 10 . 5 Kinetic . | . . . . . . . . . . . . . . . . . . . . . . . . . . Secondary 2 | . . . . . . . . . . . . . . . . . . . . . . . 2 . . Self-Inflicted Damage 364 | . . 70 . . 17 . . . 44 . . . . 31 . . 202 . . . . . . . . Shots 7 | . . 2 . . 1 . . . 1 . . . . 1 . . 2 . . . . . . . . Rammed 12 | . . 2 . 9 1 . . . . . . . . . . . . . . . . . . . . Targets Rammed 13 | . . 3 . 9 1 . . . . . . . . . . . . . . . . . . . . Kicked . | . . . . . . . . . . . . . . . . . . . . . . . . . . Crushed 1 | . . 1 . . . . . . . . . . . . . . . . . . . . . . . Highest Temperature 336 | . 251 84 91 100 285 126 . . 1 . . . . 17 . . 14 298 2 7 2 . 31 3 336 Average Temperature 53 | . 93 28 60 53 63 35 . . 1 . . . . 10 . . 7 46 2 5 2 . 2 1 61 Received Heat Transfer 2499 | . 228 48 . . 747 99 . . 45 12 . . 69 315 . . 102 400 9 . 4 . 208 . 213 Effects 2 | . . . . . . . . . . . . . . . . . . . . . . . . . 2 Interference 2 | . . . . . . . . . . . . . . . . . . . . . . . . . 2 Siege Activations . | . . . . . . . . . . . . . . . . . . . . . . . . . . Robots Corrupted 1 | . . . . . . . . . . . . . . . . . 1 . . . . . . . . Combat Hostiles 1 | . . . . . . . . . . . . . . . . . 1 . . . . . . . . Parts Fried 12 | . . . . . . . . . . . . . . . . . 2 . . . . . . . 10 Impact Corruptions 22 | . . . . . . . . . . . . . . . . . . . . . . . 15 . 7 Robots Melted 2 | . . 1 . . 1 . . . . . . . . . . . . . . . . . . . . Combat Hostiles 1 | . . 1 . . . . . . . . . . . . . . . . . . . . . . . Parts Melted 15 | . . 1 . . 10 3 . . . . . . . . . . 1 . . . . . . . . Heat Transferred 7074 | . 479 407 . . 4301 1887 . . . . . . . . . . . . . . . . . . . Parts Sabotaged . | . . . . . . . . . . . . . . . . . . . . . . . . . . Parts Stolen . | . . . . . . . . . . . . . . . . . . . . . . . . . . Parts Stripped . | . . . . . . . . . . . . . . . . . . . . . . . . . . Power Chain Reactions . | . . . . . . . . . . . . . . . . . . . . . . . . . . Alert | -11 -10 -10 -10 -9 -8 -7 -7 -7 -7 -7 -7 -6 -6 -6 -6 -6 -6 -5 -5 -5 -5 -4 -4 -4 -4 ------- Run | Yrd Mat Min Exi Min Mat Fac Was Fac Low Low Zio Pro Fac Ext Cet Arc Hub Fac Upp Upp War Pro Fac Was Fac Peak Influence 1134 | 10 151 127 . 56 767 349 58 187 . . . . 256 930 742 461 1134 929 . . . . 332 116 488 Initial 555 | . 6 19 . . . 344 28 33 . . . . 102 27 505 216 . 555 . . . . 150 116 81 Average 223 | 5 67 80 . 13 407 114 43 83 . . . . 144 527 603 56 402 594 . . . . 163 116 232 Maximum Alert Level 4 | . . . . . 3 1 . . . . . . 1 3 3 2 4 3 . . . . 1 . 2 Low Security (%) 59 | 100 100 100 . 100 23 83 100 100 . . . . 74 13 . 85 27 . . . . . 68 100 37 Level 1 16 | . . . . . 22 16 . . . . . . 25 11 . 8 10 7 . . . . 31 . 56 Level 2 17 | . . . . . 38 . . . . . . . . 43 82 5 56 66 . . . . . . 5 Level 3 5 | . . . . . 14 . . . . . . . . 31 17 . 1 25 . . . . . . . Level 4 . | . . . . . . . . . . . . . . . . . 5 . . . . . . . . Level 5 . | . . . . . . . . . . . . . . . . . . . . . . . . . . High Security . | . . . . . . . . . . . . . . . . . . . . . . . . . . Max Security . | . . . . . . . . . . . . . . . . . . . . . . . . . . Squads Dispatched 65 | . 1 . . . 10 6 . 3 . . . . 6 4 . . 7 11 . . . . 8 . 9 Investigation 17 | . . . . . 1 1 . 1 . . . . 3 3 . . 3 3 . . . . 1 . 1 Extermination 17 | . . . . . . 4 . 1 . . . . 3 . . . . 2 . . . . 3 . 4 Reinforcement 20 | . 1 . . . 3 1 . 1 . . . . . 1 . . 2 3 . . . . 4 . 4 Assault 6 | . . . . . 3 . . . . . . . . . . . 1 2 . . . . . . . Garrison 5 | . . . . . 3 . . . . . . . . . . . 1 1 . . . . . . . Intercept . | . . . . . . . . . . . . . . . . . . . . . . . . . . Searches Triggered 1 | . . . . . . . . . . . . . . . . . . . . . . . . . 1 Construction Impeded 1 | . . . . . . . . . . . . . . . . . 1 . . . . . . . . Haulers Reinforced 3 | . . . . . . 1 . 1 . . . . . . . . . . . . . . 1 . . Active Scanning Responses . | . . . . . . . . . . . . . . . . . . . . . . . . . . Cargo Convoy Interrupts 1 | . . . . . . . . . . . . . . . . . . . . . . . 1 . . Stealth | -11 -10 -10 -10 -9 -8 -7 -7 -7 -7 -7 -7 -6 -6 -6 -6 -6 -6 -5 -5 -5 -5 -4 -4 -4 -4 --------- Run | Yrd Mat Min Exi Min Mat Fac Was Fac Low Low Zio Pro Fac Ext Cet Arc Hub Fac Upp Upp War Pro Fac Was Fac Distress Signals 27 | . . . . . 4 1 . 1 . . . . . 3 2 . 4 2 . . . 1 5 . 4 Communications Jammed 19 | . . . . . . . . . . . . . . 19 . . . . . . . . . . . Distress Signals 19 | . . . . . . . . . . . . . . 19 . . . . . . . . . . . Times Spotted 439 | . 29 5 . 1 55 16 6 12 9 3 . 12 12 40 9 7 23 33 14 6 46 2 34 . 65 Peak Tracking Total 15 | . 4 3 . 2 5 6 6 7 7 3 . 7 3 5 5 1 4 5 5 5 13 1 7 . 15 Tactical Retreats 41 | . 4 . . . . . . 3 1 . . 1 . 2 . . 1 9 . . 2 . 9 . 9 Traps | -11 -10 -10 -10 -9 -8 -7 -7 -7 -7 -7 -7 -6 -6 -6 -6 -6 -6 -5 -5 -5 -5 -4 -4 -4 -4 ------- Run | Yrd Mat Min Exi Min Mat Fac Was Fac Low Low Zio Pro Fac Ext Cet Arc Hub Fac Upp Upp War Pro Fac Was Fac Traps Triggered 21 | . . . . . 3 1 . 4 . . . . 1 4 . . . 3 . . . . 3 . 2 Indirectly . | . . . . . . . . . . . . . . . . . . . . . . . . . . Trap Hack Attempts . | . . . . . . . . . . . . . . . . . . . . . . . . . . Triggered . | . . . . . . . . . . . . . . . . . . . . . . . . . . Disarmed . | . . . . . . . . . . . . . . . . . . . . . . . . . . Reprogrammed . | . . . . . . . . . . . . . . . . . . . . . . . . . . Reused . | . . . . . . . . . . . . . . . . . . . . . . . . . . Traps Extracted . | . . . . . . . . . . . . . . . . . . . . . . . . . . Installed . | . . . . . . . . . . . . . . . . . . . . . . . . . . Triggered 11 | . . . . . . . . . 1 . . . . . . . . . . 1 8 . 1 . . Machines | -11 -10 -10 -10 -9 -8 -7 -7 -7 -7 -7 -7 -6 -6 -6 -6 -6 -6 -5 -5 -5 -5 -4 -4 -4 -4 ---------- Run | Yrd Mat Min Exi Min Mat Fac Was Fac Low Low Zio Pro Fac Ext Cet Arc Hub Fac Upp Upp War Pro Fac Was Fac Machines Disabled 34 | . . . . . 6 1 . 1 . . . . . 5 1 1 13 4 . . . 1 . . 1 Max in Single Turn 10 | . . . . . 1 1 . 1 . . . . . 1 1 . 10 1 . . . 1 . . 1 Garrison Access 4 | . . . . . . . . . . . . . . . . . 1 1 . . . . . . 2 Network Hub 2 | . . . . . . . . . . . . . . . . . 2 . . . . . . . . Machines Repaired . | . . . . . . . . . . . . . . . . . . . . . . . . . . Machines Dismantled 1 | . . . . . . . . . . . . . . . . . . . . . 1 . . . . Machines Sabotaged . | . . . . . . . . . . . . . . . . . . . . . . . . . . Overloaded Fab Kills . | . . . . . . . . . . . . . . . . . . . . . . . . . . Hacking | -11 -10 -10 -10 -9 -8 -7 -7 -7 -7 -7 -7 -6 -6 -6 -6 -6 -6 -5 -5 -5 -5 -4 -4 -4 -4 --------- Run | Yrd Mat Min Exi Min Mat Fac Was Fac Low Low Zio Pro Fac Ext Cet Arc Hub Fac Upp Upp War Pro Fac Was Fac Machines Accessed 137 | . 6 1 2 . 6 10 . 13 . 1 . . 22 11 2 . 13 17 1 . 1 . 11 . 20 Terminals 90 | . 6 1 . . 3 7 . 8 . . . . 14 11 2 . 11 7 . . . . 8 . 12 Fabricators 5 | . . . . . . . . . . . . . . . . . . 3 . . . . . . 2 Repair Stations 14 | . . . . . 2 2 . 1 . . . . 2 . . . . 2 . . . . 2 . 3 Recycling Units 5 | . . . . . . . . 1 . . . . 2 . . . . 2 . . . . . . . Scanalyzers 6 | . . . . . 1 . . 1 . . . . 1 . . . . 1 . . . . 1 . 1 Garrison Access 12 | . . . . . . 1 . 2 . . . . 3 . . . 2 2 . . . . . . 2 Total Hacks 424 | . 19 4 6 . 24 30 . 28 . 1 . . 41 26 4 . 27 61 1 . 1 . 38 . 113 Successful 190 | . 5 2 6 . 15 10 . 14 . 1 . . 17 7 . . 11 24 1 . 1 . 15 . 61 Failed 231 | . 13 1 . . 9 20 . 14 . . . . 24 19 4 . 16 37 . . . . 23 . 51 Catastrophic 59 | . 1 1 . . 1 4 . 4 . . . . 10 8 1 . 3 9 . . . . 8 . 9 Database Lockouts 3 | . 1 1 . . . . . . . . . . . . . . . . . . . . . . 1 Manual 140 | . 6 3 1 . 3 10 . 4 . . . . 11 5 1 . 15 19 . . . 1 14 . 47 Terminals 284 | . 19 4 . . 4 22 . 17 . . . . 26 26 4 . 21 30 . . . . 27 . 84 Fabricators 22 | . . . . . . . . . . . . . . . . . . 11 . . . . . . 11 Repair Stations 52 | . . . . . 16 6 . 4 . . . . 5 . . . . 5 . . . . 7 . 9 Recycling Units 11 | . . . . . . . . 2 . . . . 4 . . . . 5 . . . . . . . Scanalyzers 19 | . . . . . 4 . . 2 . . . . 2 . . . . 1 . . . . 4 . 6 Garrison Access 27 | . . . . . . 2 . 3 . . . . 4 . . . 6 9 . . . . . . 3 Terminal Hacks 100 | . 4 2 6 . . 6 . 6 . 1 . . 7 7 . . 8 9 1 . 1 . 7 . 35 Record 6 | . . . 5 . . . . . . . . . . . . . . . . . . . . . 1 Part Schematic 6 | . . 1 . . . 1 . . . . . . . . . . . . . . . . 1 . 3 Robot Analysis 2 | . 1 . . . . . . . . . . . . . . . . . . . . . . . 1 Prototype ID Bank 3 | . . . . . . . . . . . . . . . . . . . . . . . . . 3 Open Door 10 | . . . . . . . . . . 1 . . 1 6 . . . . 1 . 1 . . . . Level Access Points 1 | . . . . . . . . . . . . . . . . . 1 . . . . . . . . Branch Access Points 5 | . . . . . . . . 1 . . . . . . . . . 1 . . . . 1 . 2 Emergency Access Points 3 | . . . . . . . . . . . . . . . . . . . . . . . . . 3 Machine Index 2 | . . . . . . . . . . . . . . . . . 1 . . . . . . . 1 Terminal Index 4 | . . . . . . 1 . . . . . . 1 . . . 1 . . . . . 1 . . Fabricator Index 1 | . . . . . . . . 1 . . . . . . . . . . . . . . . . . Alert Level 2 | . . . . . . . . . . . . . . . . . 1 . . . . . 1 . . Unreport Threat 13 | . . . . . . . . 2 . . . . . 1 . . 1 4 . . . . 1 . 4 Locate Traps 11 | . 1 . . . . 1 . 2 . . . . 1 . . . . 1 . . . . 2 . 3 Dispatch Records 3 | . 1 . . . . . . . . . . . . . . . . . . . . . . . 2 Maintenance Status 2 | . . . . . . 1 . . . . . . 1 . . . . . . . . . . . . Patrol Status 1 | . 1 . . . . . . . . . . . . . . . . . . . . . . . . Recall Investigation 1 | . . . . . . . . . . . . . . . . . . . . . . . . . 1 Recall Reinforcements 2 | . . . . . . . . . . . . . . . . . . . . . . . . . 2 Hauler Manifests 5 | . . . . . . 1 . . . . . . 1 . . . . 1 . . . . . . 2 Registered Components 1 | . . . . . . 1 . . . . . . . . . . . . . . . . . . . Registered Prototypes 1 | . . . . . . . . . . . . . . . . . . . . . . . . . 1 Zone Layout 14 | . . 1 . . . . . . . . . . 2 . . . 3 2 . . . . . . 6 Derelict Proto ID Bank 1 | . . . 1 . . . . . . . . . . . . . . . . . . . . . . Fabricator Hacks 6 | . . . . . . . . . . . . . . . . . . 3 . . . . . . 3 Network Status 1 | . . . . . . . . . . . . . . . . . . . . . . . . . 1 Load Schematic 4 | . . . . . . . . . . . . . . . . . . 3 . . . . . . 1 Build 1 | . . . . . . . . . . . . . . . . . . . . . . . . . 1 Repair Station Hacks 35 | . . . . . 12 3 . 3 . . . . 4 . . . . 4 . . . . 3 . 6 Scan Component 19 | . . . . . 6 2 . 2 . . . . 2 . . . . 2 . . . . 2 . 3 Repair 16 | . . . . . 6 1 . 1 . . . . 2 . . . . 2 . . . . 1 . 3 Recycling Unit Hacks 4 | . . . . . . . . 1 . . . . 1 . . . . 2 . . . . . . . Report Inventory 1 | . . . . . . . . 1 . . . . . . . . . . . . . . . . . Retrieve Components 3 | . . . . . . . . . . . . . 1 . . . . 2 . . . . . . . Scanalyzer 17 | . . . . . 3 . . 2 . . . . 2 . . . . 1 . . . . 4 . 5 Insert Component 10 | . . . . . 2 . . 1 . . . . 1 . . . . 1 . . . . 3 . 2 Analyze 7 | . . . . . 1 . . 1 . . . . 1 . . . . . . . . . 1 . 3 Garrison Access Hacks 4 | . . . . . . . . . . . . . . . . . 1 1 . . . . . . 2 Seal Access 4 | . . . . . . . . . . . . . . . . . 1 1 . . . . . . 2 Unauthorized Hacks 24 | . 1 . . . . 1 . 2 . . . . 3 . . . 2 4 . . . . 1 . 10 Terminals 17 | . 1 . . . . 1 . 1 . . . . 3 . . . 2 1 . . . . 1 . 7 Track 1 | . . . . . . . . . . . . . . . . . . . . . . . . . 1 Assimilate 8 | . . . . . . 1 . . . . . . 3 . . . 2 . . . . . . . 2 Botnet 4 | . . . . . . . . . . . . . . . . . . 1 . . . . 1 . 2 Disrupt 2 | . . . . . . . . . . . . . . . . . . . . . . . . . 2 Operators 2 | . 1 . . . . . . 1 . . . . . . . . . . . . . . . . . Fabricators 6 | . . . . . . . . . . . . . . . . . . 3 . . . . . . 3 Report 1 | . . . . . . . . . . . . . . . . . . . . . . . . . 1 Prioritize 1 | . . . . . . . . . . . . . . . . . . . . . . . . . 1 Haulers 1 | . . . . . . . . . . . . . . . . . . . . . . . . . 1 Recompile 3 | . . . . . . . . . . . . . . . . . . 3 . . . . . . . Repair Stations . | . . . . . . . . . . . . . . . . . . . . . . . . . . Recycling Units 1 | . . . . . . . . 1 . . . . . . . . . . . . . . . . . Recyclers 1 | . . . . . . . . 1 . . . . . . . . . . . . . . . . . Scanalyzers . | . . . . . . . . . . . . . . . . . . . . . . . . . . Garrison Access . | . . . . . . . . . . . . . . . . . . . . . . . . . . Data Cores Recovered 1 | . . . . . . . . . . . . . . . . . 1 . . . . . . . . Used 1 | . . . . . . . . . . . . . . . . . 1 . . . . . . . . Hacking Detections 116 | . 6 1 . . 6 10 . 13 . . . . 20 9 2 . 12 13 . . . . 10 . 14 Full Trace Events 12 | . 1 . . . . 1 . . . . . . 3 2 . . 3 . . . . . 1 . 1 Feedback Events 2 | . 1 . . . . . . . . . . . . . . . 1 . . . . . . . . Corruption 1 | . 1 . . . . . . . . . . . . . . . . . . . . . . . . Hackware Fried 1 | . . . . . . . . . . . . . . . . . 1 . . . . . . . . Feedback Blocked . | . . . . . . . . . . . . . . . . . . . . . . . . . . Robot Schematics Acquired 4 | . . . . . . . . . . . 4 . . . . . . . . . . . . . . Robots Built . | . . . . . . . . . . . . . . . . . . . . . . . . . . Authchips . | . . . . . . . . . . . . . . . . . . . . . . . . . . Time . | . . . . . . . . . . . . . . . . . . . . . . . . . . Total Robot Build Rating . | . . . . . . . . . . . . . . . . . . . . . . . . . . Part Schematics Acquired 26 | . . 1 . . 1 1 . 1 . . 15 . 1 . . . . . . . . . 2 . 4 Parts Built 1 | . . . . . . . . . . . . . . . . . . . . . . . . . 1 Authchips 1 | . . . . . . . . . . . . . . . . . . . . . . . . . 1 Time 152 | . . . . . . . . . . . . . . . . . . . . . . . . . 152 Total Part Build Rating 5 | . . . . . . . . . . . . . . . . . . . . . . . . . 5 Parts Repaired 16 | . . . . . 6 1 . 1 . . . . 2 . . . . 2 . . . . 1 . 3 Time 675 | . . . . . 216 26 . 35 . . . . 63 . . . . 79 . . . . 80 . 176 Parts Recycled . | . . . . . . . . . . . . . . . . . . . . . . . . . . Recycled Matter . | . . . . . . . . . . . . . . . . . . . . . . . . . . Retrieved Matter . | . . . . . . . . . . . . . . . . . . . . . . . . . . Retrieved Components 14 | . . . . . . . . . . . . . 1 . . . . 13 . . . . . . . Parts Scanalyzed 6 | . . . . . 1 . . 1 . . . . 1 . . . . . . . . . 1 . 2 Part Schematics Acquired 6 | . . . . . 1 . . 1 . . . . 1 . . . . . . . . . 1 . 2 Parts Damaged . | . . . . . . . . . . . . . . . . . . . . . . . . . . Bothacking | -11 -10 -10 -10 -9 -8 -7 -7 -7 -7 -7 -7 -6 -6 -6 -6 -6 -6 -5 -5 -5 -5 -4 -4 -4 -4 ------------ Run | Yrd Mat Min Exi Min Mat Fac Was Fac Low Low Zio Pro Fac Ext Cet Arc Hub Fac Upp Upp War Pro Fac Was Fac Used RIF Installer . | . . . . . . . . . . . . . . . . . . . . . . . . . . Robots Hacked 4 | . . . . . . . . . . . . . . . . 4 . . . . . . . . . Non-combat . | . . . . . . . . . . . . . . . . . . . . . . . . . . Combat 4 | . . . . . . . . . . . . . . . . 4 . . . . . . . . . Robot Hacks Applied 4 | . . . . . . . . . . . . . . . . 4 . . . . . . . . . parse_system 4 | . . . . . . . . . . . . . . . . 4 . . . . . . . . . Relay Couplers Released 1 | . . . . . . . . . . . . . . . . . 1 . . . . . . . . Machine Destruction 1 | . . . . . . . . . . . . . . . . . 1 . . . . . . . . Fabnet Peak Effective % . | . . . . . . . . . . . . . . . . . . . . . . . . . . Robots Rewired 19 | . . . . . . . . . . . . . . 14 . . . . . . 5 . . . . Allies Hacked 1 | . . . . . . . . . . . . . . . . . . . . . . 1 . . . Hacks Repelled . | . . . . . . . . . . . . . . . . . . . . . . . . . . Allies | -11 -10 -10 -10 -9 -8 -7 -7 -7 -7 -7 -7 -6 -6 -6 -6 -6 -6 -5 -5 -5 -5 -4 -4 -4 -4 -------- Run | Yrd Mat Min Exi Min Mat Fac Was Fac Low Low Zio Pro Fac Ext Cet Arc Hub Fac Upp Upp War Pro Fac Was Fac Total Allies 49 | . . . . 2 . 1 . . . . 2 . 3 28 5 . 1 . . . 5 . . . 2 Largest Group 25 | . . . . 2 2 1 1 . . . 2 1 2 25 24 21 18 3 . . 5 2 . . 1 Highest-Rated Group 1205 | . . . . 45 45 26 26 . . . 82 51 52 990 1205 1119 904 281 . . 269 130 . . 26 Highest-Rated Ally 159 | . . . . 31 31 26 26 . . . 51 51 26 159 159 159 96 96 . . 65 65 . . 26 Total Orders 16 | . . . . . . . . . . . . . 2 . 2 . 4 2 . . 6 . . . . STAY 7 | . . . . . . . . . . . . . 1 . 1 . 3 . . . 2 . . . . ROAM 1 | . . . . . . . . . . . . . . . . . . 1 . . . . . . . FOLLOW 6 | . . . . . . . . . . . . . 1 . 1 . 1 1 . . 2 . . . . AID 2 | . . . . . . . . . . . . . . . . . . . . . 2 . . . . Ally Attacks 437 | . . . . 12 11 . . . . . . 7 . 115 77 37 108 34 . . 36 . . . . Total Damage 13242 | . . . . 190 142 . . . . . . 97 . 3398 1983 1001 3725 1397 . . 1309 . . . . Kills 75 | . . . . 2 1 . . . . . . 3 . 14 11 5 30 4 . . 5 . . . . Allies Corrupted 3 | . . . . . . . . . . . . . . . . . . 3 . . . . . . . Allies Melted . | . . . . . . . . . . . . . . . . . . . . . . . . . . Intel | -11 -10 -10 -10 -9 -8 -7 -7 -7 -7 -7 -7 -6 -6 -6 -6 -6 -6 -5 -5 -5 -5 -4 -4 -4 -4 ------- Run | Yrd Mat Min Exi Min Mat Fac Was Fac Low Low Zio Pro Fac Ext Cet Arc Hub Fac Upp Upp War Pro Fac Was Fac Robot Analysis Total 2 | . 1 . . . . . . . . . . . . . . . . . . . . . . . 1 Derelict Logs Recovered 11 | . . 1 . 1 . . . . 1 2 2 2 . . . . . . . 1 . 1 . . . Drone Launches . | . . . . . . . . . . . . . . . . . . . . . . . . . . Drone Recoveries . | . . . . . . . . . . . . . . . . . . . . . . . . . . Exploration | -11 -10 -10 -10 -9 -8 -7 -7 -7 -7 -7 -7 -6 -6 -6 -6 -6 -6 -5 -5 -5 -5 -4 -4 -4 -4 ------------- Run | Yrd Mat Min Exi Min Mat Fac Was Fac Low Low Zio Pro Fac Ext Cet Arc Hub Fac Upp Upp War Pro Fac Was Fac Turns Passed 31366 | 36 1906 852 1136 1316 5225 2476 52 899 152 121 698 196 1295 1107 444 5704 764 1712 235 149 726 205 1468 25 2467 Spaces Moved 21991 | 14 1023 334 385 537 1377 943 111 1444 347 317 709 328 2104 924 420 896 989 2224 393 275 789 371 1955 66 2716 Core 18 | . . . . . . . . . . . . . . . . 3 . . . . . . . . 15 Treads 3792 | . 359 334 385 537 1377 800 . . . . . . . . . . . . . . . . . . . Legs 95 | 14 81 . . . . . . . . . . . . . . . . . . . . . . . . Wheels 583 | . 583 . . . . . . . . . . . . . . . . . . . . . . . . Hover 17503 | . . . . . . 143 111 1444 347 317 709 328 2104 924 420 893 989 2224 393 275 789 371 1955 66 2701 Flight . | . . . . . . . . . . . . . . . . . . . . . . . . . . Fastest Speed 33 | 120 105 240 240 240 160 38 38 38 38 38 38 38 34 54 54 52 54 41 45 45 39 39 37 37 33 Average Speed 84 | 120 154 240 290 240 231 214 43 40 38 38 95 46 47 54 54 55 54 46 45 45 41 40 42 37 48 Slowest Speed 500 | 120 320 240 320 240 242 247 106 98 38 38 98 98 54 54 54 500 62 54 45 45 47 47 109 37 131 Overloaded Moves 2 | . . . . . . . . . . . . . . . . . . . . . 2 . . . . Propulsion Burnouts . | . . . . . . . . . . . . . . . . . . . . . . . . . . Robots Hopped 2 | . . . . . . . . . . . . . . . 2 . . . . . . . . . . Cave-ins Triggered . | . . . . . . . . . . . . . . . . . . . . . . . . . . Exploration Rate (%) 64 | 3 99 78 62 99 77 20 78 37 55 61 84 57 42 86 86 98 74 54 59 43 80 61 37 71 64 Regions Visited 25 Branch Regions 15 Pre-discovered Areas 4 | . . . 1 . . . . . . 1 2 . . . . . . . . . . . . . . Known Exits Taken 5 | . . . . . . . . 1 . . . . 1 . . . 1 1 . 1 . . . . . Unknown Exits Taken 16 | 1 1 1 1 1 1 . . . 1 1 1 1 . 1 1 1 . . 1 . 1 1 . . . Scrap Searched 17 | . . 3 . 1 . . . . 1 3 . 4 . . . . . . 2 2 . 1 . . . Spaces Dug 292 | . . . . . 1 2 . 24 2 . . . 25 . . . 12 33 . 21 23 10 50 . 89 Terrain Destroyed 1059 | . . 56 . . 112 7 . 36 32 . . 35 25 90 . . 347 40 64 35 30 11 50 . 89 Melee 263 | . . . . . 1 2 . 24 2 . . . 25 . . . 12 33 . . 22 3 50 . 89 Projectile 53 | . . . . . 27 5 . . . . . . . . . . . . 4 1 8 8 . . . AOE 743 | . . 56 . . 84 . . 12 30 . . 35 . 90 . . 335 7 60 34 . . . . . Terrain Rammed . | . . . . . . . . . . . . . . . . . . . . . . . . . . Walls Destroyed . | . . . . . . . . . . . . . . . . . . . . . . . . . . Machines Disabled . | . . . . . . . . . . . . . . . . . . . . . . . . . . Actions | -11 -10 -10 -10 -9 -8 -7 -7 -7 -7 -7 -7 -6 -6 -6 -6 -6 -6 -5 -5 -5 -5 -4 -4 -4 -4 --------- Run | Yrd Mat Min Exi Min Mat Fac Was Fac Low Low Zio Pro Fac Ext Cet Arc Hub Fac Upp Upp War Pro Fac Was Fac Total 33952 | 21 1259 364 407 554 3229 1335 114 1723 362 316 728 361 2373 1487 636 6108 1200 2826 426 292 1137 408 2503 65 3718 Wait 10050 | . 108 1 . 5 1635 248 3 185 7 . 14 3 143 378 205 5145 164 440 4 9 236 24 337 . 756 Move 21964 | 13 1022 333 384 536 1376 943 110 1443 346 316 708 327 2103 923 415 895 988 2223 392 274 788 370 1955 65 2716 Hop 2 | . . . . . . . . . . . . . . . 2 . . . . . . . . . . Pick Up 207 | . 31 4 9 . 27 19 . 9 . . 2 5 14 1 1 11 6 22 2 1 11 . 22 . 10 Fast Attach 96 | 1 5 1 . . 12 8 . 3 . . . 1 8 4 1 10 . 2 . . 8 . 17 . 15 Attach 56 | . . . 2 . 7 6 1 3 . . . 2 1 1 . 3 4 5 2 . 3 . 7 . 9 Detach 27 | . 2 . 2 . 3 4 . 3 . . . . . . . 1 1 . . . 2 . 5 . 4 Swap 228 | . 13 3 4 2 34 21 . 13 3 . 2 7 23 8 4 6 7 21 9 . 3 . 24 . 21 Drop 282 | . 24 4 6 2 33 43 . 9 . . 1 4 27 5 6 20 3 19 1 1 16 . 32 . 26 Fire 285 | 7 54 15 . . 99 41 . 2 2 . . 4 . 10 . . 3 2 15 7 16 8 . . . Melee 595 | . . . . . 2 2 . 53 4 . 1 8 54 51 2 17 24 82 1 . 28 6 99 . 161 Ram . | . . . . . . . . . . . . . . . . . . . . . . . . . . Kick . | . . . . . . . . . . . . . . . . . . . . . . . . . . Crush 13 | . . 3 . 9 1 . . . . . . . . . . . . . . . . . . . . Escape Stasis 24 | . . . . . . . . . . . . . . 9 . . . 10 . . . . 5 . . Rewire 115 | . . . . . . . . . . . . . . 97 . . . . . . 18 . . . . Trap . | . . . . . . . . . . . . . . . . . . . . . . . . . . Miscellaneous 8 | . . . . . . . . . . . . . . . . . . . . . 8 . . . . Route ------- -11/Scrapyard -10/Materials (discovered 4 exits: [*Mat x3] / *Min) -10/Mines (discovered 2 exits: [*Mat] / *Exi) -10/Exiles -9/Mines (discovered 2 exits: *Mat x2) -8/Materials -7/Factory -7/Waste -7/Factory (discovered 3 exits: *Fac / *Low x2) -7/Lower Caves -7/Lower Caves -7/Zion -6/Proximity Caves -6/Factory (discovered 4 exits: *Low x2 / *Ext x2) -6/Extension (discovered 2 exits: *Fac / *Cet) -6/Cetus (discovered 2 exits: *Fac / *Arc) -6/Archives (discovered 3 exits: *Fac / *Hub x2) -6/Hub_04(d) (discovered 4 exits: *Fac x4) -5/Factory (discovered 4 exits: *Fac x2 / *Upp x2) -5/Upper Caves -5/Upper Caves -5/Warlord -4/Proximity Caves -4/Factory (discovered 2 exits: *Upp x2) -4/Waste -4/Factory (discovered 4 exits: [*Res x2] / *Upp x2) History --------- Turn | Location | Event 1 | -11/Scrapyard | Discovered new exit (range 2) 37 | -11/Scrapyard | Entered Materials 152 | -10/Materials | Discovered new exit (range 3) 261 | -10/Materials | Discovered new exit (range 16) 315 | -10/Materials | Build established: Mutant 346 | -10/Materials | Central database locked down 1166 | -10/Materials | Discovered new exit (range 16) 1681 | -10/Materials | Discovered new exit (range 4) 1943 | -10/Materials | Entered Mines 1948 | -10/Mines | Central database locked down 1964 | -10/Mines | Met a Derelict bent on vengeance 2557 | -10/Mines | Discovered new exit (range 4) 2785 | -10/Mines | Deemed a non-threat by the Exiles lab entrance 2785 | -10/Mines | Discovered new exit (range 5) 2795 | -10/Mines | Entered Exiles 2881 | -10/Exiles | Met 8R-AWN 2926 | -10/Exiles | Met EX-HEX 3025 | -10/Exiles | Met EX-BIN 3156 | -10/Exiles | Aligned with FarCom system 3159 | -10/Exiles | Given EX-Vault access code 3246 | -10/Exiles | Opened EX-Vault 3275 | -10/Exiles | Found Longsword +1 3340 | -10/Exiles | Warned to stay clear of 0b10 Research branches 3442 | -10/Exiles | Met EX-DEC 3471 | -10/Exiles | Learned location of Zion (-7) 3717 | -10/Exiles | Discovered new exit (range 14) 3931 | -10/Exiles | Left Exiles lab with Longsword +1 3931 | -10/Exiles | Entered Mines 3946 | -9/Mines | Learned Materials emergency access door positions 3991 | -9/Mines | Found a hidden stash of uninstalled traps 3991 | -9/Mines | Discovered new exit (range 10) 4155 | -9/Mines | Discovered new exit (range 15) 4212 | -9/Mines | Received a Rocket Launcher from a helpful Derelict 5247 | -9/Mines | Entered Materials 5247 | -8/Materials | Accompanied by 2 allies 5247 | -8/Materials | Evolved 4 slots: Propulsion x2, Utility x2 5252 | -8/Materials | Led the pair of lost Derelicts to an unsafe place 5313 | -8/Materials | Garrison activated, responded to threat 6814 | -8/Materials | Build established: Scavenger-Mutant 7159 | -8/Materials | Build established: Mutant 7879 | -8/Materials | Discovered new exit (range 15) 8542 | -8/Materials | Repaired Imp. Light Armor Plating 8581 | -8/Materials | Repaired Arm. Treads 8615 | -8/Materials | Repaired Rocket Launcher 8660 | -8/Materials | Repaired Hvy. Ion Cannon 8699 | -8/Materials | Repaired Imp. Light Armor Plating 8727 | -8/Materials | Repaired Lgt. Treads 8847 | -8/Materials | First assault squad dispatched 9295 | -8/Materials | Build established: Scavenger-Mutant 10472 | -8/Materials | Entered Factory 10472 | -7/Factory | Evolved 2 slots: Utility x2 11760 | -7/Factory | Repaired Broken Lgt. Nuclear Core 11864 | -7/Factory | Build established: Mutant 12158 | -7/Factory | Discovered new exit (range 4) 12517 | -7/Factory | Identified exit to Lower Caves 12948 | -7/Factory | Sucked down chute 12948 | -7/Factory | Entered Waste 12955 | -7/Waste | Spotted C-40 Crusher 12961 | -7/Waste | Spotted C-40 Crusher 12966 | -7/Waste | Spotted C-40 Crusher 12968 | -7/Waste | Spotted C-40 Crusher 12977 | -7/Waste | Spotted C-40 Crusher 12978 | -7/Waste | Discovered new exit (range 13) 12979 | -7/Waste | Spotted C-40 Crusher 12990 | -7/Waste | Crushed by Compactor (1 part destroyed, 1 dropped) 12998 | -7/Waste | 1 allies followed down the chute 13000 | -7/Waste | Entered Factory 13011 | -7/Factory | Discovered new exit (range 16) 13167 | -7/Factory | Build established: Hacker-Gladiator 13255 | -7/Factory | Repaired Cld. Airjet 13899 | -7/Factory | Entered Lower Caves 13934 | -7/Lower Caves | Learned Factory garrison access intel 14049 | -7/Lower Caves | Discovered new exit (range 7) 14051 | -7/Lower Caves | Entered another Lower Caves area 14067 | -7/Lower Caves | Learned Factory stockpile data 14168 | -7/Lower Caves | Discovered new exit (range 9) 14172 | -7/Lower Caves | Attracted the attention of an 0b10 checkpoint 14172 | -7/Lower Caves | Entered Zion 14184 | -7/Zion | Found CR-A16's Pointy Stick 14203 | -7/Zion | Build established: Gladiator 14204 | -7/Zion | Given A8's code to call for help 14219 | -7/Zion | Discovered new exit (range 16) 14263 | -7/Zion | System corruption cleaned by Quarantine Array 14385 | -7/Zion | Learned location of Data Miner (-6) 14520 | -7/Zion | Rebuked by Imprinter 14713 | -7/Zion | Gained Derelict followers 14870 | -7/Zion | Entered Proximity Caves 14870 | -6/Proximity Caves | Accompanied by 2 allies 14929 | -6/Proximity Caves | Learned 4 Factory zone layouts 15041 | -6/Proximity Caves | Attracted the attention of an 0b10 checkpoint 15055 | -6/Proximity Caves | Discovered new exit (range 14) 15066 | -6/Proximity Caves | Entered Factory 15066 | -6/Factory | Evolved 2 slots: Propulsion x1, Utility x1 15067 | -6/Factory | Identified exit to Lower Caves 15067 | -6/Factory | Identified exit to Extension 15070 | -6/Factory | Loaded intel: 4 garrison access locations 15293 | -6/Factory | Discovered exit to Lower Caves (range 10) 15430 | -6/Factory | Discovered exit to Extension (range 10) 15829 | -6/Factory | Repaired Imp. Utility Shielding 15998 | -6/Factory | Repaired Microactuators 16092 | -6/Factory | Build established: Infiltrator-Gladiator 16361 | -6/Factory | Entered Extension 16608 | -6/Extension | Spotted B-75 Beast 16681 | -6/Extension | Rescued A7 16695 | -6/Extension | Enhanced Grunt warped into view, answering call for help 16699 | -6/Extension | Enhanced Grunt warped into view, answering call for help 16718 | -6/Extension | Rescued a captive Derelict 16718 | -6/Extension | Rescued a captive Derelict 16764 | -6/Extension | Rescued a captive Derelict 16765 | -6/Extension | Rescued a captive Derelict 16973 | -6/Extension | Build established: Commander-Gladiator 17014 | -6/Extension | Spotted B-75 Beast 17021 | -6/Extension | Destroyed B-75 Beast 17028 | -6/Extension | Destroyed B-75 Beast 17080 | -6/Extension | Rescued a captive Derelict 17081 | -6/Extension | Rescued a captive Derelict 17098 | -6/Extension | Rescued a captive Derelict 17107 | -6/Extension | Rescued a captive Derelict 17110 | -6/Extension | Rescued a captive Derelict 17291 | -6/Extension | Rescued a captive Derelict 17292 | -6/Extension | Rescued a captive Derelict 17343 | -6/Extension | Discovered new exit (range 10) 17344 | -6/Extension | Discovered new exit (range 6) 17468 | -6/Extension | Entered Cetus 17468 | -6/Cetus | Accompanied by 24 allies (A7) 17473 | -6/Cetus | Acquired a Cetus Manufacturing Module code from A7 17477 | -6/Cetus | Spotted Cetus Guard 17477 | -6/Cetus | Spotted Cetus Guard 17482 | -6/Cetus | Spotted Cetus Guard 17484 | -6/Cetus | Spotted Cetus Guard 17492 | -6/Cetus | Allies destroyed Cetus Guard 17494 | -6/Cetus | Allies destroyed Cetus Guard 17497 | -6/Cetus | Allies destroyed Cetus Guard 17497 | -6/Cetus | Allies destroyed Cetus Guard 17523 | -6/Cetus | Lost 5 allies 17543 | -6/Cetus | Started Cetus Manufacturing Module 17568 | -6/Cetus | Manufactured an Enhanced Grunt 17574 | -6/Cetus | Escorted A7 to Cetus Mainframe 17593 | -6/Cetus | Manufactured an Enhanced Grunt 17618 | -6/Cetus | Manufactured an Enhanced Grunt 17643 | -6/Cetus | Manufactured an Enhanced Grunt 17668 | -6/Cetus | Manufactured an Enhanced Grunt 17747 | -6/Cetus | Discovered new exit (range 16) 17772 | -6/Cetus | Spotted Cetus Guard 17772 | -6/Cetus | Spotted Cetus Guard 17788 | -6/Cetus | Spotted Cetus Guard 17788 | -6/Cetus | Allies destroyed Cetus Guard 17792 | -6/Cetus | Allies destroyed Cetus Guard 17798 | -6/Cetus | Discovered new exit (range 15) 17804 | -6/Cetus | Met Revision 17 17912 | -6/Cetus | Entered Archives 17912 | -6/Archives | Accompanied by 21 allies (A7) 17917 | -6/Archives | Received a hacking code to weaken MAIN.C 17955 | -6/Archives | Discovered new exit (range 15) 17963 | -6/Archives | Discovered new exit (range 13) 18009 | -6/Archives | Discovered new exit (range 14) 18213 | -6/Archives | Unable to access archive contents 18352 | -6/Archives | Build established: Commander-Mutant 18705 | -6/Archives | Build established: Commander-Gladiator 23616 | -6/Archives | Entered Hub_04(d) 23616 | -6/Hub_04(d) | Accompanied by 18 allies 23746 | -6/Hub_04(d) | Imp. Hacking Suite fried by hacking feedback 23770 | -6/Hub_04(d) | Discovered new exit (range 10) 23813 | -6/Hub_04(d) | Lost 4 allies 23813 | -6/Hub_04(d) | Garrison activated, responded to threat 23906 | -6/Hub_04(d) | Identified exit to Factory 24316 | -6/Hub_04(d) | First assault squad dispatched 24330 | -6/Hub_04(d) | Lost 6 allies 24333 | -6/Hub_04(d) | Network Hub disabled 24338 | -6/Hub_04(d) | Network Hub disabled 24380 | -6/Hub_04(d) | Entered Factory 24380 | -5/Factory | Accompanied by 3 allies 24380 | -5/Factory | Evolved 2 slots: Propulsion x1, Utility x1 24521 | -5/Factory | Repaired Cmb. Airjet 24600 | -5/Factory | Discovered new exit (range 14) 24617 | -5/Factory | Found Quantum Capacitor 24975 | -5/Factory | Spotted B-75 Beast 24978 | -5/Factory | Build established: Scavenger-Gladiator 25075 | -5/Factory | Revealed the true nature of CR-A16's Pointy Stick 25079 | -5/Factory | Allies destroyed B-75 Beast 25096 | -5/Factory | Found Prototype Launcher 25132 | -5/Factory | Discovered new exit (range 13) 25183 | -5/Factory | Repaired Centrium Medium Armor Plating 25782 | -5/Factory | Garrison activated, responded to threat 25880 | -5/Factory | First assault squad dispatched 25899 | -5/Factory | Discovered new exit (range 3) 25957 | -5/Factory | Identified exit to Upper Caves 25979 | -5/Factory | Build established: Hacker-Scout 26092 | -5/Factory | Entered Upper Caves 26122 | -5/Upper Caves | Identified Tesla Bomb Launcher 26155 | -5/Upper Caves | Encountered a Warlord checkpoint 26255 | -5/Upper Caves | Spotted B-75 Beast 26268 | -5/Upper Caves | Destroyed B-75 Beast 26315 | -5/Upper Caves | Discovered new exit (range 8) 26327 | -5/Upper Caves | Entered another Upper Caves area 26345 | -5/Upper Caves | Encountered a Warlord checkpoint 26347 | -5/Upper Caves | Identified exit to Warlord 26400 | -5/Upper Caves | Build established: Hacker-Mutant 26476 | -5/Upper Caves | Entered Warlord 26656 | -5/Warlord | Met Warlord 26681 | -5/Warlord | Warlord's base attacked by MAIN.C 26684 | -5/Warlord | Found Prototype Hackware 26689 | -5/Warlord | Found Prototype Processor 26689 | -5/Warlord | Identified Exp. Core Analyzer 26795 | -5/Warlord | Found Prototype Energy Gun 26795 | -5/Warlord | Identified Vortex Rifle 26797 | -5/Warlord | Found Prototype Piercing Weapon 26797 | -5/Warlord | Identified Vortex Lance 26802 | -5/Warlord | Found Vortex Lance 27001 | -5/Warlord | Lost 3 allies 27031 | -5/Warlord | Warlord forces counterattacked 27053 | -5/Warlord | Build established: Commander-Mutant 27079 | -5/Warlord | Lost 3 allies 27108 | -5/Warlord | Spotted Striker 27172 | -5/Warlord | Discovered new exit (range 12) 27202 | -5/Warlord | Entered Proximity Caves 27202 | -4/Proximity Caves | Accompanied by 2 allies 27207 | -4/Proximity Caves | Lost 13 allies 27305 | -4/Proximity Caves | Spotter reported a threat 27375 | -4/Proximity Caves | Acquired the password to a Derelict Tinkerer's latest research 27390 | -4/Proximity Caves | Discovered new exit (range 14) 27407 | -4/Proximity Caves | Entered Factory 27407 | -4/Factory | Evolved 2 slots: Utility x2 27408 | -4/Factory | Identified System Mapper 27464 | -4/Factory | Identified exit to Upper Caves 27754 | -4/Factory | Spotted B-86 Titan 27755 | -4/Factory | Destroyed B-86 Titan 27785 | -4/Factory | Build established: Hacker-Gladiator 28237 | -4/Factory | Cargo convoy interrupted 28286 | -4/Factory | Found Prototype Launcher 28302 | -4/Factory | Identified Com. Tesla Bomb Launcher 28668 | -4/Factory | Repaired Exp. Weapon Shielding? 28764 | -4/Factory | Found Prototype Processor 28764 | -4/Factory | Identified Exp. Signal Interpreter 28768 | -4/Factory | Found Exp. Signal Interpreter 28800 | -4/Factory | Found Prototype Device 28800 | -4/Factory | Identified Exp. Force Field 28875 | -4/Factory | Manually triggered Chute Trap 28875 | -4/Factory | Sucked down chute 28875 | -4/Factory | Entered Waste 28875 | -4/Waste | The area was eerily silent 28895 | -4/Waste | Discovered new exit (range 13) 28900 | -4/Waste | Entered Factory 29032 | -4/Factory | Fabricated Exp. Utility Shielding? 29049 | -4/Factory | Build established: Hacker-Mutant 29183 | -4/Factory | Search patrols dispatched 29291 | -4/Factory | Lost 3 parts (1p1n1u) 29351 | -4/Factory | Discovered exit to Upper Caves (range 5) 29544 | -4/Factory | Build established: Hacker-Gladiator 30176 | -4/Factory | Repaired Exp. Utility Shielding 30299 | -4/Factory | Discovered new exit (range 15) 30562 | -4/Factory | Discovered new exit (range 8) 30705 | -4/Factory | Central database locked down 31094 | -4/Factory | Repaired Cmb. Gravmag System 31177 | -4/Factory | Repaired Exp. Utility Shielding 31356 | -4/Factory | Core integrity fell below 50% 31360 | -4/Factory | Spotted B-86 Titan 31364 | -4/Factory | Core integrity fell below 20% 31367 | -4/Factory | Destroyed by B-86 Titan with Matter Neutralizer Last Messages --------------- 31340_ P-70 Sage resets P-70 Sage, system corruption cleaned. 31340_ Manufacturing Mainframe disabled. 31346_ C-30 ARC bursts open, deploying its payload. 31346_ H-77 Assassin unfolds itself. 31346_ Exp. Utility Shielding destroyed. 31348_ Penetrated by Slug. 31351_ System corrupted: Matter fused (-10). 31352_ Penetrated by Slug. 31352_ Cmb. Gravmag System destroyed. 31355_ Penetrated by Slug. 31355_ Exp. Reaction Control System destroyed. 31355_ Penetrated by Slug. 31355_ Nanoactuators destroyed. 31358_ Penetrated by Slug. 31359_ Melee Analysis Suite destroyed. 31361_ Penetrated by Slug. 31364_ Nanoactuators destroyed. 31364_ Authchip [Processor] destroyed. 31367_ System corrupted: CR-A16's Behemoth Slayer rejected. 31367_ Acquired CR-A16's Behemoth Slayer. Map ----- +----------------------------------------------------+ | ?????????????????????????????????????????????????? | | ????????????>????????????????????????????????????? | | ?????????????????????????????????????????????????? | | ?????????????????????????????????????????????????? | | ?????????????????????????????????????????????????? | | ?????????????????????????????????????????????????? | | ?????????????????????????????????????????????????? | | ?????????????????????????????????????????????????? | | ?A???????????????????????????????????????????????? | | ?????????????????????????????????????????????????? | | ?????????????????????????????????????????????????? | | ?????????????????????######??????????????????????? | | ??????????????????????k ??????????????????????? | | ????????????????????? ??????????????????????? | | ?????????????????????? ??????????????????????? | | ????????????w????????? ??????????????????????? | | ?????????????????????"" ??????????????????????? | | ????????????????????""" ??????????????????????? | | ???????????????????""""k #??????????????????????? | | ??????????????????""""" #??????????????????????? | | ??????????????????? #??????????????????????? | | ??????????????""??""""" #??????????????????????? | | ??????????????"" """""" ###????????????????????? | | ????????????"""" """""" BB#????????????????????? | | ??????????"""""" """""" BB#??????????????? ??? | | ????????? k @;#?????????????? ??? | | ????????? R ##?????????????# ??? | | ?????????? #??????????????# ??? | | ???????????######## #??????????????# ??? | | ??????????????????# ##########?????# #?? | | ??????????????????# #?????# #?? | | ??????????????????# #?????# #?? | | ??????????????????# % #?????# #?? | | ?????????########## #?????# #?? | | ?????????# ! ? # #?????# #?? | | ?????????# # #?????# #?? | | ?????????# """"" # t #?????# #?? | | ?????????# """"" # #?##### ### | | ?????????# """ # % ###T ## ### | | ?????????# ^ #ss h A %= | | ?????????# """"" # % ph !!% | | ?????????#*!""""" #ss A = | | ?????????# %""" / s | | ######???# % %# =!% | | #???# """" # =%/=* | | #### #???# """"" # "%" =%*!! | | ???# #####^%""" #####+#+###############+###=! | | ???# +^ % ^ # ## !!*!/ = | | ???####### """ # ## ![!/! % | | ?????????# R" # ## " "*"" " # | +----------------------------------------------------+ Best States ------------- Heat Dissipation 59 Energy Generation 35 Energy Capacity 675 Matter Stores 300 Matter Capacity 300 Sight Range 22 Robot Scan Range 14 Terrain Scan Density 10 ECM Strength 1 Jamming Range 12 Additional Mass Support 12 Armor Coverage 450 Propulsion Shielding 33 Utility Shielding 90 Weapon Shielding 90 Melee Speed Boost 50 Phase Shifting 10 Evasion (%) 71 Targeting Accuracy 8 Melee Accuracy 13 Core Analysis 8 Recoil Reduction 4 Force Boost 20 Offensive Hacking 32 Defensive Hacking 10 Authchip Count 3 Item Schematics ----------------- Med. Storage Unit | -10/Mines | Hacked Aerolev Unit | -8/Materials | Scanalyzed Enh. Optical Array | -7/Factory | Hacked Imp. Utility Shielding | -7/Factory | Scanalyzed Lyr. Light Armor Plating | -7/Zion | Archive Hvy. Plasma Cannon | -7/Zion | Archive Kinecellerator | -7/Zion | Archive Adv. Terrain Scanner | -7/Zion | Archive Imp. EM Pulse Cannon | -7/Zion | Archive Adv. Signal Interpreter | -7/Zion | Archive Arc Projector | -7/Zion | Archive Phasing Sabre | -7/Zion | Archive Mak. Trap Scanner | -7/Zion | Archive Component Analysis Suite | -7/Zion | Archive Beamcaster | -7/Zion | Archive Mak. Sword | -7/Zion | Archive Imp. Particle Charger | -7/Zion | Archive Nuclear Pulse Thruster | -7/Zion | Archive Mak. Light Armor Plating | -7/Zion | Archive Cmb. Airjet | -6/Factory | Scanalyzed Nanoactuators | -4/Factory | Scanalyzed Exp. Utility Shielding | -4/Factory | Hacked Lyr. Medium Armor Plating | -4/Factory | Scanalyzed Exp. Weapon Shielding | -4/Factory | Scanalyzed Lgt. Antimatter Reactor | -4/Factory | Hacked Adv. Force Booster | -4/Factory | Hacked Robot Schematics ------------------ G-47 Trooper | -7/Zion | Archive R-06 Scavenger | -7/Zion | Archive K-01 Serf | -7/Zion | Archive C-57 Dissector | -7/Zion | Archive Fabricated ------------ Exp. Utility Shielding | x1 | -4/Factory | Authchip Alien Tech Used ----------------- None Achievements -------------- Watch This! Wheee! Challenges ------------ None Game ------ Seed WardroneGatlingMinigun Manual? 0 Play Time 08:04:38 Cumulative 381.9 hours Start 2024.05.11 @ 20:12:16 End 2024.05.13 @ 21:32:55 Sessions 9 Manual Loads 0 Difficulty Rogue Special Mode None Game No. 122 Rogue 83 Adventurer 0 Explorer 39 Win Type - Total 12 Types 10/1/1/0/0/0/0/0/0 Lore% 73 Gallery% 78 Achievement% 67 Wizard Run 0 Options --------- Layout 0 ASCII 1 Keyboard 1 Movement Arrows Keybinds 0 Fullscreen 2 Font 36/Smallcaps Map View 76x50 Zoom Use 0% Tactical HUD 1 Map Filters NONE Filters NONE Steam 1 RUN: a1dc05ff-54c4-4b65-b296-37b250b2451b